fUSD/lending_fUSD_20251024
["ID","MTS","AMOUNT","RATE_DAILY","PERIOD"]
[392245591,1761276670574,-500.0,0.00041643,30]
[392245592,1761276670584,-507.53511915,0.00041643,30]
[392245593,1761276670595,-500.0,0.00041643,30]
[392245594,1761276670604,-526.97758661,0.00041643,30]
[392245595,1761276670614,-500.0,0.00041643,30]
[392245596,1761276670623,-539.42,0.00041643,30]
[392245597,1761276670633,-512.09,0.00041643,30]
[392245598,1761276670643,-500.0,0.00041643,30]
[392245599,1761276670653,-500.0,0.00041643,30]
[392245600,1761276670663,-1087.85,0.00041643,30]
[392245601,1761276670674,-500.0,0.00041643,30]
[392245602,1761276670684,-500.0,0.00041643,30]
[392245603,1761276670694,-305.1724,0.00041643,120]
[392245604,1761276670705,-305.1724,0.00041643,120]
[392245605,1761276670715,-500.0,0.00041643,30]
[392245606,1761276670723,-500.0,0.00041643,30]
[392245607,1761276670734,-500.0,0.00041643,30]
[392245608,1761276670744,-500.0,0.00041643,30]
[392245609,1761276670754,-305.1724,0.00041643,120]
[392245610,1761276670763,-500.0,0.00041643,30]
[392245611,1761276670775,-602.69,0.00041643,30]
[392245612,1761276670784,-305.1724,0.00041643,120]
[392245613,1761276670795,-500.0,0.00041643,30]
[392245614,1761276670804,-635.17,0.00041643,30]
[392245615,1761276670814,-500.0,0.00041643,30]
[392245616,1761276670823,-500.0,0.00041643,30]
[392245617,1761276670833,-500.0,0.00041643,30]
[392245618,1761276670843,-500.0,0.00041643,30]
[392245619,1761276670852,-823.67,0.00041643,30]
[392245620,1761276670862,-805.42,0.00041643,30]
[392245621,1761276670871,-654.87,0.00041643,30]
[392245622,1761276670881,-500.0,0.00041643,30]
[392245623,1761276670890,-500.0,0.00041643,30]
[392245624,1761276670900,-508.76,0.00041643,30]
[392245625,1761276670909,-500.0,0.00041644,120]
[392245626,1761276670919,-1425.0,0.00041649,2]
[392245627,1761276670930,-153.77903,0.0004166,10]
[392245628,1761276670939,-538.92729218,0.00041673,3]
[392245629,1761276670949,-500.0,0.00041673,10]
[392245630,1761276670958,-500.0,0.00041673,10]
[392245631,1761276670969,-541.81184011,0.00041673,8]
[392245632,1761276670978,-150.0,0.00041673,10]
[392245633,1761276670988,-152.0,0.00041693,6]
[392245634,1761276670998,-1425.0,0.00041729,2]
[392245635,1761276671008,-560.42632714,0.00041755,2]
[392245636,1761276671018,-1000.0,0.000418,120]
[392245637,1761276671029,-1200.0,0.000418,15]
[392245638,1761276671039,-533.1325069,0.00041807,2]
[392245639,1761276671048,-475.12401204,0.00041816,120]
[392245640,1761276671058,-1425.0,0.00041848,2]
[392245641,1761276671068,-1312.711,0.00041871,2]
[392245642,1761276671078,-1639.156,0.00041871,2]
[392245643,1761276671088,-677.349,0.00041871,2]
[392245644,1761276671098,-1269.0,0.00041871,2]
[392245645,1761276671108,-818.0,0.00041871,2]
[392245646,1761276671125,-1193.628,0.00041871,2]
[392245647,1761276671134,-2550.0,0.00041871,2]
[392245648,1761276671144,-903.0,0.00041871,2]
[392245649,1761276671154,-572.0,0.00041871,2]
[392245650,1761276671164,-2053.0,0.00041871,2]
[392245651,1761276671174,-3487.0,0.00041871,2]
[392245652,1761276671184,-3413.0,0.00041871,2]
[392245653,1761276671196,-154.441162,0.00041871,120]
[392245654,1761276671205,-161.0,0.0004189,120]
[392245655,1761276671214,-1600.0,0.000419,15]
[392245656,1761276671224,-151.0,0.00041914,14]
[392245657,1761276671233,-864.42,0.00041915,2]
[392245658,1761276671243,-500.0,0.00041916,30]
[392245659,1761276671253,-500.0,0.00041916,30]
[392245660,1761276671262,-759.05,0.00041916,30]
[392245661,1761276671272,-702.45,0.00041916,30]
[392245662,1761276671282,-500.0,0.00041916,30]
[392245663,1761276671292,-503.56,0.00041916,30]
[392245664,1761276671301,-500.0,0.00041916,30]
[392245665,1761276671311,-500.0,0.00041916,30]
[392245666,1761276671321,-500.0,0.00041916,30]
[392245667,1761276671330,-500.0,0.00041916,30]
[392245668,1761276671341,-619.76,0.00041916,30]
[392245669,1761276671350,-500.0,0.00041916,30]
[392245670,1761276671359,-500.0,0.00041916,30]
[392245671,1761276671369,-500.0,0.00041916,30]
[392245672,1761276671378,-500.0,0.00041916,30]
[392245673,1761276671390,-500.0,0.00041916,30]
[392245674,1761276671400,-500.0,0.00041916,30]
[392245675,1761276671410,-500.0,0.00041916,30]
[392245676,1761276671420,-500.0,0.00041916,30]
[392245677,1761276671429,-515.9,0.00041916,30]
[392245678,1761276671439,-500.0,0.00041916,30]
[392245679,1761276671448,-500.0,0.00041916,30]
[392245680,1761276671459,-500.0,0.00041916,30]
[392245681,1761276671470,-500.0,0.00041916,30]
[392245682,1761276671480,-807.29,0.00041916,30]
[392245683,1761276671490,-500.0,0.00041916,30]
[392245684,1761276671572,-500.0,0.00041916,30]
[392245685,1761276671582,-500.0,0.00041916,30]
[392245686,1761276671592,-598.35,0.00041916,30]
[392245687,1761276671601,-534.59,0.00041916,30]
[392245688,1761276671610,-612.17,0.00041916,30]
[392245689,1761276671619,-500.0,0.00041916,30]
[392245690,1761276671629,-500.0,0.00041916,30]
[392245691,1761276671639,-500.0,0.00041916,30]
[392245692,1761276671649,-500.0,0.00041916,30]
[392245693,1761276671658,-500.0,0.00041916,30]
[392245694,1761276671667,-1228.65,0.00041916,30]
[392245695,1761276671676,-500.0,0.00041916,30]
[392245696,1761276671685,-500.0,0.00041916,30]
[392245697,1761276671694,-500.0,0.00041916,30]
[392245698,1761276671704,-500.0,0.00041916,30]
[392245699,1761276671713,-500.0,0.00041916,30]
[392245700,1761276671723,-500.0,0.00041916,30]
[392245701,1761276671732,-500.0,0.00041916,30]
[392245702,1761276671742,-506.94,0.00041916,30]
[392245703,1761276671751,-500.0,0.00041916,30]
[392245704,1761276671760,-500.0,0.00041916,30]
[392245705,1761276671770,-500.0,0.00041916,30]
[392245706,1761276671779,-500.0,0.00041916,30]
[392245707,1761276671789,-500.0,0.00041916,30]
[392245708,1761276671799,-500.0,0.00041916,30]
[392245709,1761276671808,-500.0,0.00041916,30]
[392245710,1761276671818,-500.0,0.00041916,30]
[392245711,1761276671828,-500.0,0.00041916,30]
[392245712,1761276671837,-500.0,0.00041916,30]
[392245713,1761276671846,-500.0,0.00041916,30]
[392245714,1761276671856,-702.82,0.00041916,30]
[392245715,1761276671867,-712.07,0.00041916,30]
[392245716,1761276671877,-522.13,0.00041916,30]
[392245717,1761276671886,-957.86,0.00041916,30]
[392245718,1761276671896,-500.0,0.00041916,30]
[392245719,1761276671906,-500.0,0.00041916,30]
[392245720,1761276671915,-500.0,0.00041916,30]
[392245721,1761276671928,-500.0,0.00041916,30]
[392245722,1761276671939,-500.0,0.00041916,30]
[392245723,1761276671948,-816.98,0.00041916,30]
[392245724,1761276671957,-500.0,0.00041916,30]
[392245725,1761276671967,-425.85633679,0.00041916,30]
[392245726,1761276671978,-500.0,0.00041916,30]
[392245727,1761276671987,-878.78,0.00041916,30]
[392245728,1761276671997,-629.56,0.00041916,30]
[392245729,1761276672007,-778.71,0.00041916,30]
[392245730,1761276672017,-500.0,0.00041916,30]
[392245731,1761276672026,-500.0,0.00041916,30]
[392245732,1761276672035,-500.0,0.00041916,30]
[392245733,1761276672046,-516.49,0.00041916,30]
[392245734,1761276672056,-500.0,0.00041916,30]
[392245735,1761276672066,-500.0,0.00041916,30]
[392245736,1761276672075,-500.0,0.00041916,30]
[392245737,1761276672084,-500.0,0.00041916,30]
[392245738,1761276672093,-500.0,0.00041916,30]
[392245739,1761276672102,-500.0,0.00041916,30]
[392245740,1761276672112,-500.0,0.00041916,30]
[392245741,1761276672124,-215.44448127,0.00041916,30]
[392245742,1761276672133,-514.35,0.00041916,30]
[392245743,1761276672142,-500.0,0.00041916,30]
[392245744,1761276672151,-500.0,0.00041916,30]
[392245745,1761276672161,-337.94900879,0.00041916,30]
[392245746,1761276672171,-500.0,0.00041916,30]
[392245747,1761276672179,-500.0,0.00041916,30]
[392245748,1761276672191,-500.0,0.00041916,30]
[392245749,1761276672199,-500.0,0.00041916,30]
[392245750,1761276672208,-500.0,0.00041916,30]
[392245751,1761276672217,-500.0,0.00041916,30]
[392245752,1761276672226,-500.0,0.00041916,30]
[392245753,1761276672235,-500.0,0.00041916,30]
[392245754,1761276672244,-500.0,0.00041916,30]
[392245755,1761276672254,-543.3,0.00041916,30]
[392245756,1761276672263,-559.34,0.00041916,30]
[392245757,1761276672272,-500.0,0.00041916,30]
[392245758,1761276672280,-500.0,0.00041916,30]
[392245759,1761276672289,-500.0,0.00041916,30]
[392245760,1761276672298,-1022.15,0.00041916,30]
[392245761,1761276672307,-500.0,0.00041916,30]
[392245762,1761276672316,-782.57,0.00041916,30]
[392245763,1761276672325,-570.31,0.00041916,30]
[392245764,1761276672334,-885.28,0.00041916,30]
[392245765,1761276672343,-500.0,0.00041916,30]
[392245766,1761276672352,-738.42,0.00041916,30]
[392245767,1761276672361,-500.0,0.00041916,30]
[392245768,1761276672370,-827.8,0.00041916,30]
[392245769,1761276672379,-747.36,0.00041916,30]
[392245770,1761276672388,-500.0,0.00041916,30]
[392245771,1761276672397,-931.74,0.00041916,30]
[392245772,1761276672406,-500.0,0.00041916,30]
[392245773,1761276672415,-568.4,0.00041916,30]
[392245774,1761276672424,-855.01,0.00041916,30]
[392245775,1761276672433,-500.0,0.00041916,30]
[392245776,1761276672442,-500.0,0.00041916,30]
[392245777,1761276672451,-500.0,0.00041916,30]
[392245778,1761276672461,-500.0,0.00041916,30]
[392245779,1761276672470,-500.0,0.00041916,30]
[392245780,1761276672479,-500.0,0.00041916,30]
[392245781,1761276672488,-531.3,0.00041916,30]
[392245782,1761276672497,-500.0,0.00041916,30]
[392245783,1761276672507,-546.17,0.00041916,30]
[392245784,1761276672516,-500.0,0.00041916,30]
[392245785,1761276672525,-500.0,0.00041916,30]
[392245786,1761276672534,-1079.09,0.00041916,30]
[392245787,1761276672543,-500.0,0.00041916,30]
[392245788,1761276672552,-500.0,0.00041916,30]
[392245789,1761276672561,-500.0,0.00041916,30]
[392245790,1761276672569,-500.0,0.00041916,30]
[392245791,1761276672578,-500.0,0.00041916,30]
[392245792,1761276672587,-500.0,0.00041916,30]
[392245793,1761276672596,-774.66,0.00041916,30]
[392245794,1761276672605,-648.38,0.00041916,30]
[392245795,1761276672614,-500.0,0.00041916,30]
[392245796,1761276672623,-500.5,0.00041916,30]
[392245797,1761276672632,-500.0,0.00041916,30]
[392245798,1761276672641,-790.24,0.00041916,30]
[392245799,1761276672649,-500.0,0.00041916,30]
[392245800,1761276672660,-500.0,0.00041916,30]
[392245801,1761276672669,-1293.66,0.00041916,30]
[392245802,1761276672678,-500.0,0.00041916,30]
[392245803,1761276672686,-500.0,0.00041916,30]
[392245804,1761276672695,-500.0,0.00041916,30]
[392245805,1761276672704,-1216.42,0.00041916,30]
[392245806,1761276672713,-500.0,0.00041916,30]
[392245807,1761276672723,-396.87701495,0.00041916,30]
[392245808,1761276672732,-500.0,0.00041916,30]
[392245809,1761276672741,-500.0,0.00041916,30]
[392245810,1761276672750,-766.29,0.00041916,30]
[392245811,1761276672759,-605.84,0.00041916,30]
[392245812,1761276672768,-500.0,0.00041916,30]
[392245813,1761276672777,-584.16,0.00041916,30]
[392245814,1761276672786,-500.0,0.00041916,30]
[392245815,1761276672795,-754.49,0.00041916,30]
[392245816,1761276672804,-835.0,0.00041916,30]
[392245817,1761276672813,-500.0,0.00041916,30]
[392245818,1761276672822,-500.0,0.00041916,30]
[392245819,1761276672831,-500.0,0.00041916,30]
[392245820,1761276672839,-500.0,0.00041916,30]
[392245821,1761276672848,-500.0,0.00041916,30]
[392245822,1761276672857,-500.0,0.00041916,30]
[392245823,1761276672867,-968.87,0.00041916,30]
[392245824,1761276672875,-584.43,0.00041916,30]
[392245825,1761276672885,-500.0,0.00041916,30]
[392245826,1761276672894,-765.02,0.00041916,30]
[392245827,1761276672904,-500.0,0.00041916,30]
[392245828,1761276672913,-818.09,0.00041916,30]
[392245829,1761276672923,-500.0,0.00041916,30]
[392245830,1761276672932,-500.0,0.00041916,30]
[392245831,1761276672942,-700.27,0.00041916,30]
[392245832,1761276672951,-500.0,0.00041916,30]
[392245833,1761276672961,-567.3,0.00041916,30]
[392245834,1761276672971,-500.0,0.00041916,30]
[392245835,1761276672981,-500.0,0.00041916,30]
[392245836,1761276672990,-500.0,0.00041916,30]
[392245837,1761276672999,-549.34,0.00041916,30]
[392245838,1761276673009,-500.0,0.00041916,30]
[392245839,1761276673018,-500.0,0.00041916,30]
[392245840,1761276673027,-500.0,0.00041916,30]
[392245841,1761276673036,-708.53,0.00041916,30]
[392245842,1761276673046,-500.0,0.00041916,30]
[392245843,1761276673056,-868.81,0.00041916,30]
[392245844,1761276673065,-500.0,0.00041916,30]
[392245845,1761276673075,-500.0,0.00041916,30]
[392245846,1761276673086,-500.0,0.00041916,30]
[392245847,1761276673096,-500.0,0.00041916,30]
[392245848,1761276673105,-445.14084045,0.00041916,30]
[392245849,1761276673118,-477.40380468,0.00041916,30]
[392245850,1761276673129,-841.79,0.00041916,30]
[392245851,1761276673138,-500.0,0.00041916,30]
[392245852,1761276673148,-500.0,0.00041916,30]
[392245853,1761276673159,-685.09,0.00041916,30]
[392245854,1761276673168,-500.0,0.00041916,30]
[392245855,1761276673178,-500.0,0.00041916,30]
[392245856,1761276673188,-518.17,0.00041916,30]
[392245857,1761276673199,-582.97,0.00041916,30]
[392245858,1761276673208,-500.0,0.00041916,30]
[392245859,1761276673218,-500.0,0.00041916,30]
[392245860,1761276673227,-500.0,0.00041916,30]
[392245861,1761276673236,-500.0,0.00041916,30]
[392245862,1761276673245,-500.0,0.00041916,30]
[392245863,1761276673254,-500.0,0.00041916,30]
[392245864,1761276673263,-767.33,0.00041916,30]
[392245865,1761276673273,-500.0,0.00041916,30]
[392245866,1761276673282,-576.3,0.00041916,30]
[392245867,1761276673291,-500.0,0.00041916,30]
[392245868,1761276673300,-547.29,0.00041916,30]
[392245869,1761276673309,-500.0,0.00041916,30]
[392245870,1761276673319,-563.88,0.00041916,30]
[392245871,1761276673328,-500.0,0.00041916,30]
[392245872,1761276673337,-536.57,0.00041916,30]
[392245873,1761276673346,-500.0,0.00041916,30]
[392245874,1761276673355,-500.0,0.00041916,30]
[392245875,1761276673364,-500.0,0.00041916,30]
[392245876,1761276673373,-500.0,0.00041916,30]
[392245877,1761276673382,-500.0,0.00041916,30]
[392245878,1761276673391,-500.0,0.00041916,30]
[392245879,1761276673400,-500.0,0.00041916,30]
[392245880,1761276673409,-500.0,0.00041916,30]
[392245881,1761276673418,-500.0,0.00041916,30]
[392245882,1761276673427,-500.0,0.00041916,30]
[392245883,1761276673436,-500.0,0.00041916,30]
[392245884,1761276673445,-500.0,0.00041916,30]
[392245885,1761276673454,-500.0,0.00041916,30]
[392245886,1761276673462,-500.0,0.00041916,30]
[392245887,1761276673471,-716.69,0.00041916,30]
[392245888,1761276673480,-500.0,0.00041916,30]
[392245889,1761276673489,-500.0,0.00041916,30]
[392245890,1761276673498,-582.83,0.00041916,30]
[392245891,1761276673508,-500.0,0.00041916,30]
[392245892,1761276673517,-500.0,0.00041916,30]
[392245893,1761276673525,-440.41426811,0.00041916,30]
[392245894,1761276673534,-720.59,0.00041916,30]
[392245895,1761276673546,-500.0,0.00041916,30]
[392245896,1761276673558,-500.0,0.00041916,30]
[392245897,1761276673567,-500.0,0.00041916,30]
[392245898,1761276673576,-500.0,0.00041916,30]
[392245899,1761276673585,-502.35,0.00041916,30]
[392245900,1761276673594,-500.0,0.00041916,30]
[392245901,1761276673602,-500.0,0.00041916,30]
[392245902,1761276673611,-500.0,0.00041916,30]
[392245903,1761276673620,-500.0,0.00041916,30]
[392245904,1761276673629,-500.0,0.00041916,30]
[392245905,1761276673637,-500.0,0.00041916,30]
[392245906,1761276673646,-500.0,0.00041916,30]
[392245907,1761276673655,-151.31714779,0.00041916,30]
[392245908,1761276673666,-853.32,0.00041916,30]
[392245909,1761276673675,-500.25,0.00041916,30]
[392245910,1761276673685,-209.4711057,0.00041916,30]
[392245911,1761276673694,-500.0,0.00041916,30]
[392245912,1761276673703,-500.0,0.00041916,30]
[392245913,1761276673713,-770.35,0.00041916,30]
[392245914,1761276673723,-759.31,0.00041916,30]
[392245915,1761276673733,-864.42,0.00041916,2]
[392245916,1761276673743,-692.51,0.00041916,30]
[392245917,1761276673751,-925.13,0.00041916,30]
[392245918,1761276673761,-569.1,0.00041916,30]
[392245919,1761276673770,-500.0,0.00041916,2]
[392245920,1761276673781,-500.0,0.00041916,30]
[392245921,1761276673791,-760.48,0.00041916,30]
[392245922,1761276673802,-500.0,0.00041916,30]
[392245923,1761276673813,-500.0,0.00041916,30]
[392245924,1761276673824,-691.31,0.00041916,30]
[392245925,1761276673835,-500.0,0.00041916,2]
[392245926,1761276673845,-500.0,0.00041916,30]
[392245927,1761276673855,-500.0,0.00041916,30]
[392245928,1761276673864,-983.51,0.00041916,30]
[392245929,1761276673873,-500.0,0.00041916,30]
[392245930,1761276673882,-500.0,0.00041916,30]
[392245931,1761276673893,-590.79,0.00041916,30]
[392245932,1761276673903,-980.07,0.00041916,30]
[392245933,1761276673912,-500.0,0.00041916,30]
[392245934,1761276673922,-500.0,0.00041916,30]
[392245935,1761276673932,-500.0,0.00041916,30]
[392245936,1761276673942,-500.0,0.00041916,30]
[392245937,1761276673952,-500.0,0.00041916,30]
[392245938,1761276673961,-500.0,0.00041916,30]
[392245939,1761276673970,-817.32,0.00041916,30]
[392245940,1761276673980,-500.0,0.00041916,30]
[392245941,1761276673990,-500.0,0.00041916,30]
[392245942,1761276674000,-500.0,0.00041916,10]
[392245943,1761276674009,-500.0,0.00041916,30]
[392245944,1761276674018,-802.82,0.00041916,30]
[392245945,1761276674027,-500.0,0.00041916,30]
[392245946,1761276674037,-500.0,0.00041916,30]
[392245947,1761276674047,-500.0,0.00041916,30]
[392245948,1761276674055,-644.8,0.00041916,30]
[392245949,1761276674064,-500.0,0.00041916,30]
[392245950,1761276674074,-165.74573662,0.00041916,30]
[392245951,1761276674083,-500.0,0.00041916,30]
[392245952,1761276674092,-500.0,0.00041916,30]
[392245953,1761276674101,-516.06659738,0.00041916,30]
[392245954,1761276674110,-896.35,0.00041916,30]
[392245955,1761276674124,-500.0,0.00041916,30]
[392245956,1761276674133,-743.01,0.00041916,30]
[392245957,1761276674142,-500.0,0.00041916,30]
[392245958,1761276674152,-540.45,0.00041916,30]
[392245959,1761276674162,-500.0,0.00041916,30]
[392245960,1761276674171,-517.28427288,0.00041916,30]
[392245961,1761276674181,-500.0,0.00041916,30]
[392245962,1761276674195,-500.0,0.00041916,30]
[392245963,1761276674204,-956.91,0.00041916,30]
[392245964,1761276674214,-290.13631037,0.00041916,30]
[392245965,1761276674223,-500.0,0.00041916,30]
[392245966,1761276674232,-500.0,0.00041916,30]
[392245967,1761276674242,-500.0,0.00041916,30]
[392245968,1761276674251,-500.0,0.00041916,30]
[392245969,1761276674261,-523.02,0.00041916,30]
[392245970,1761276674270,-625.96,0.00041916,30]
[392245971,1761276674279,-652.85,0.00041916,30]
[392245972,1761276674290,-571.6,0.00041916,30]
[392245973,1761276674299,-934.98,0.00041916,30]
[392245974,1761276674310,-500.0,0.00041916,30]
[392245975,1761276674320,-500.0,0.00041916,30]
[392245976,1761276674329,-500.0,0.00041916,30]
[392245977,1761276674339,-506.71,0.00041916,30]
[392245978,1761276674349,-500.0,0.00041916,30]
[392245979,1761276674360,-500.0,0.00041916,30]
[392245980,1761276674370,-706.23,0.00041916,30]
[392245981,1761276674380,-500.0,0.00041916,30]
[392245982,1761276674391,-500.0,0.00041916,30]
[392245983,1761276674400,-500.0,0.00041916,30]
[392245984,1761276674410,-712.5,0.00041916,30]
[392245985,1761276674419,-500.0,0.00041916,30]
[392245986,1761276674429,-500.0,0.00041916,30]
[392245987,1761276674439,-500.0,0.00041916,30]
[392245988,1761276674449,-500.0,0.00041916,30]
[392245989,1761276674458,-500.0,0.00041916,30]
[392245990,1761276674468,-698.44,0.00041916,30]
[392245991,1761276674479,-500.0,0.00041916,30]
[392245992,1761276674489,-500.0,0.00041916,30]
[392245993,1761276674498,-513.78195881,0.00041917,30]
[392245994,1761276674507,-500.0,0.00041917,30]
[392245995,1761276674516,-500.0,0.00041917,30]
[392245996,1761276674526,-500.0,0.00041917,30]
[392245997,1761276674537,-500.0,0.00041917,30]
[392245998,1761276674546,-500.0,0.00041917,30]
[392245999,1761276674554,-500.0,0.00041917,30]
[392246000,1761276674563,-500.0,0.00041917,30]
[392246001,1761276674572,-377.43766849,0.00041917,30]
[392246002,1761276674581,-500.0,0.00041917,30]
[392246003,1761276674590,-234.16850231,0.00041917,30]
[392246004,1761276674599,-500.0,0.00041917,30]
[392246005,1761276674608,-381.46001013,0.00041917,30]
[392246006,1761276674617,-500.0,0.00041917,30]
[392246007,1761276674626,-500.0,0.00041917,30]
[392246008,1761276674634,-500.0,0.00041917,30]
[392246009,1761276674643,-500.0,0.00041917,30]
[392246010,1761276674652,-500.0,0.00041917,30]
[392246011,1761276674661,-500.0,0.00041917,30]
[392246012,1761276674670,-500.0,0.00041917,2]
[392246013,1761276674680,-500.0,0.00041917,30]
[392246014,1761276674689,-296.67953719,0.00041917,30]
[392246015,1761276674698,-500.0,0.00041917,30]
[392246016,1761276674706,-519.40660005,0.00041917,30]
[392246017,1761276674715,-500.0,0.00041917,30]
[392246018,1761276674726,-631.88,0.00041917,30]
[392246019,1761276674735,-515.0,0.00041917,2]
[392246020,1761276674744,-500.0,0.00041917,30]
[392246021,1761276674753,-500.0,0.00041917,30]
[392246022,1761276674762,-500.0,0.00041917,30]
[392246023,1761276674771,-500.0,0.00041917,30]
[392246024,1761276674782,-500.0,0.00041917,30]
[392246025,1761276674792,-500.0,0.00041917,30]
[392246026,1761276674801,-500.0,0.00041917,30]
[392246027,1761276674811,-500.0,0.00041917,30]
[392246028,1761276674820,-500.0,0.00041917,30]
[392246029,1761276674830,-500.0,0.00041917,30]
[392246030,1761276674840,-500.0,0.00041917,30]
[392246031,1761276674850,-500.0,0.00041917,30]
[392246032,1761276674858,-151.0,0.00041917,120]
[392246033,1761276674868,-500.0,0.00041917,30]
[392246034,1761276674878,-500.0,0.00041917,30]
[392246035,1761276674887,-500.0,0.00041917,30]
[392246036,1761276674896,-500.0,0.00041917,30]
[392246037,1761276674905,-500.0,0.00041917,30]
[392246038,1761276674915,-500.0,0.00041917,30]
[392246039,1761276674924,-500.0,0.00041917,30]
[392246040,1761276674941,-368.3825049,0.00041917,30]
[392246041,1761276674952,-500.0,0.00041917,2]
[392246042,1761276674962,-414.24923455,0.00041917,30]
[392246043,1761276674972,-500.0,0.00041917,30]
[392246044,1761276674982,-187.02599011,0.00041917,30]
[392246045,1761276674991,-500.0,0.00041917,30]
[392246046,1761276675001,-500.0,0.00041917,30]
[392246047,1761276675010,-662.02,0.00041917,30]
[392246048,1761276675020,-550.71,0.00041917,30]
[392246049,1761276675030,-157.1198,0.00041917,120]
[392246050,1761276675040,-320.98762884,0.00041917,30]
[392246051,1761276675050,-500.0,0.00041917,30]
[392246052,1761276675059,-500.0,0.00041917,30]
[392246053,1761276675069,-368.46093274,0.00041917,30]
[392246054,1761276675078,-500.0,0.00041917,30]
[392246055,1761276675087,-500.0,0.00041917,30]
[392246056,1761276675097,-500.0,0.00041917,30]
[392246057,1761276675106,-500.0,0.00041917,30]
[392246058,1761276675119,-752.97,0.00041917,30]
[392246059,1761276675129,-562.37,0.00041917,30]
[392246060,1761276675139,-500.0,0.00041917,30]
[392246061,1761276675148,-692.99,0.00041917,30]
[392246062,1761276675159,-500.0,0.00041917,30]
[392246063,1761276675169,-500.0,0.00041917,30]
[392246064,1761276675179,-500.0,0.00041917,30]
[392246065,1761276675191,-500.0,0.00041917,30]
[392246066,1761276675201,-500.0,0.00041917,30]
[392246067,1761276675212,-614.45,0.00041917,30]
[392246068,1761276675221,-500.0,0.00041917,30]
[392246069,1761276675230,-500.0,0.00041917,30]
[392246070,1761276675240,-500.0,0.00041917,30]
[392246071,1761276675250,-500.0,0.00041917,30]
[392246072,1761276675259,-653.26,0.00041917,30]
[392246073,1761276675269,-971.61,0.00041917,30]
[392246074,1761276675279,-657.54,0.00041917,30]
[392246075,1761276675288,-741.84,0.00041917,30]
[392246076,1761276675298,-208.9931989,0.00041917,30]
[392246077,1761276675307,-649.04,0.00041917,30]
[392246078,1761276675317,-500.0,0.00041917,30]
[392246079,1761276675329,-500.0,0.00041917,30]
[392246080,1761276675339,-551.58430353,0.00041917,30]
[392246081,1761276675349,-601.63,0.00041917,30]
[392246082,1761276675359,-500.0,0.00041917,30]
[392246083,1761276675368,-525.56,0.00041917,30]
[392246084,1761276675380,-500.0,0.00041917,30]
[392246085,1761276675389,-500.0,0.00041917,30]
[392246086,1761276675398,-500.0,0.00041917,30]
[392246087,1761276675407,-458.74501712,0.00041917,30]
[392246088,1761276675416,-944.3,0.00041917,30]
[392246089,1761276675425,-577.92176696,0.00041917,30]
[392246090,1761276675436,-500.0,0.00041917,30]